Cogmind - Beta 14 @@@ ROGUE MODE // 2025.01.04 @ 18:56:41 Player: jumpy Result: Destroyed by Y-45 Defender with Heavy Assault Rifle Performance ------------- Evolutions (2) 1000 Regions Visited (4) 800 Robots Destroyed (35) 175 Value Destroyed (979) 979 Prototype IDs (1) 20 Alien Tech Used (0) 0 Bonus (0) 0 TOTAL SCORE: 2974 Bonus ------- None Cogmind --------- Core Integrity 0/550 Matter 270/300 Energy 12/100 System Corruption 0% Temperature Cool (9) Movement Walking (120) Location -8/Materials Parts ------- > --- POWER (1) -------- (None) > --- PROPULSION (4) --- Light Treads Carbon-fiber Leg > --- UTILITY (4) ------ Improved Sensor Array Seismic Detector Advanced Targeting Computer Particle Charger > --- WEAPON (2) ------- Ion Cannon > --- INVENTORY (5) ---- Mini Grenade Launcher Peak State ------------ > --- POWER ------------ (None) > --- PROPULSION ------- Light Treads Carbon-fiber Leg > --- UTILITY ---------- Improved Sensor Array Seismic Detector Advanced Targeting Computer Particle Charger > --- WEAPON ----------- Ion Cannon > --- INVENTORY -------- (None) [Rating: 17] Favorites ----------- Power Ion Engine Engine Ion Engine Power Core Light Nuclear Core Propulsion Improved Aluminum Leg Treads Light Treads Leg Improved Aluminum Leg Flight Unit Flight Unit Utility Small Storage Unit Device Seismic Detector Storage Small Storage Unit Processor Advanced Targeting Computer Protection Light Armor Plating Weapon Small Laser Energy Gun Small Laser Energy Cannon Ion Cannon Ballistic Gun Light Assault Rifle Launcher Rocket Launcher Build | -11 -10 -9 -9 -8 ------- Run | Yrd Mat Mat Min Mat Slots Evolved 4 | . . 2 . 2 Power . | . . . . . Propulsion 2 | . . 2 . . Utility 2 | . . . . 2 Weapon . | . . . . . Parts Attached 49 | 7 10 12 . 20 Power 8 | 2 2 1 . 3 Engine 7 | 2 2 1 . 2 Core 1 | . . . . 1 Reactor . | . . . . . Propulsion 19 | 2 3 8 . 6 Treads 1 | . . . . 1 Leg 10 | 2 3 2 . 3 Wheel . | . . . . . Hover . | . . . . . Flight 8 | . . 6 . 2 Utility 8 | 1 2 1 . 4 Device 3 | . . . . 3 Storage 1 | 1 . . . . Processor 1 | . . . . 1 Hackware . | . . . . . Protection 3 | . 2 1 . . Artifact . | . . . . . Weapon 14 | 2 3 2 . 7 Energy Gun 10 | 2 3 2 . 3 Energy Cannon 1 | . . . . 1 Ballistic Gun 2 | . . . . 2 Ballistic Cannon . | . . . . . Launcher 1 | . . . . 1 Special Weapon . | . . . . . Impact Weapon . | . . . . . Slashing Weapon . | . . . . . Piercing Weapon . | . . . . . Special Melee Weapon . | . . . . . Unidentified Prototypes 1 | . . 1 . . Parts Lost 21 | . 1 1 . 19 Power 3 | . . . . 3 Propulsion 8 | . 1 . . 7 Utility 3 | . . 1 . 2 Weapon 7 | . . . . 7 Highest Loss Streak 6 | . 1 1 . 6 To Critical Strikes . | . . . . . Average Slot Usage (%) 75 | . 91 92 100 52 Engine 8 | . 13 11 11 2 Treads 1 | . . . . 2 Leg 18 | . 28 32 . 3 Flight 5 | . . 9 44 8 Device 2 | . . . . 6 Storage 10 | . 14 11 11 6 Processor 1 | . . . . 3 Protection 5 | . 6 6 11 3 Energy Gun 19 | . 28 22 22 8 Peak Build Rating 17 | 6 10 13 11 17 Average Rating 9 | 3 8 11 11 9 On Entrance 7 | . 6 10 11 11 Naked Turns . | . . . . . Heaviest Build 18 | 12 15 15 13 18 Greatest Support 52 | 20 26 52 17 20 Greatest Overweight (x) 3 | 3 1 2 . 2 Average Overweight (x) . | . . . . . Largest Inventory Capacity 8 | 8 8 8 8 8 Average Capacity 7 | 7 8 8 8 7 Most Carried 8 | 4 8 8 4 4 Average Carried 4 | 1 6 6 4 1 Final Capacity 8 | 8 8 8 8 5 Final Carried 8 | 2 8 4 4 1 Class Distribution -------------------- 89% | Mutant 7% | Scavenger-Sprinter 3% | Scavenger-Mutant Dominant Class ---------------- Mutant | -10/Materials Mutant | -9/Materials Scavenger-Sprinter | -9/Mines Mutant | -8/Materials Resources | -11 -10 -9 -9 -8 ----------- Run | Yrd Mat Mat Min Mat Matter Collected 658 | 194 171 120 . 173 Remotely . | . . . . . Salvage Created 1062 | . 350 203 . 509 Parts 67 | . 23 15 . 29 Haulers Intercepted . | . . . . . Recyclers Shooed 1 | . 1 . . . Parts Field Recycled . | . . . . . Retrieved Matter . | . . . . . Parts Self-Destructed . | . . . . . Prevented . | . . . . . Kills | -11 -10 -9 -9 -8 ------- Run | Yrd Mat Mat Min Mat Combat Hostiles Destroyed 32 | . 12 7 . 13 Guns 25 | . 10 7 . 8 Cannons 1 | . . . . 1 AOE 6 | . 2 . . 4 Classes Destroyed 8 | . 2 1 . 5 Worker 1 | . . . . 1 Builder 1 | . . . . 1 Watcher 1 | . . . . 1 Swarmer 14 | . 6 4 . 4 Grunt 12 | . 6 1 . 5 Brawler 2 | . . . . 2 Sentry 3 | . . 2 . 1 Hunter 1 | . . . . 1 Best Kill Streak 6 | . 4 6 . 5 Combat Bots Only 6 | . 4 6 . 5 Max Kills in Single Turn 2 | . 2 2 . 2 Gunslinging 1 | . 1 1 . . Exploded 2 | . 2 . . 2 Melee . | . . . . . Uniques/NPCs Destroyed . | . . . . . Combat | -11 -10 -9 -9 -8 -------- Run | Yrd Mat Mat Min Mat Hostile Shots Fired 240 | . 62 35 1 142 Missed 53 | . 11 10 1 31 Damage Taken 2659 | . 608 284 . 1767 Core 669 | . 84 21 . 564 Absorbed by Shields . | . . . . . Regen/Repaired (Parts) 37 | . 37 . . . Core Remaining (%) 86 | 100 66 . 94 . Volleys Fired 136 | . 27 19 . 90 Largest 2 | . 2 2 . 2 Hottest 125 | . 80 80 . 125 Shots Fired 209 | . 54 38 . 117 Gun 197 | . 54 38 . 105 Cannon 8 | . . . . 8 Launcher 4 | . . . . 4 Special . | . . . . . Kinetic 32 | . . . . 32 Thermal 173 | . 54 38 . 81 Explosive 4 | . . . . 4 Electromagnetic . | . . . . . Robot Hit Streak 17 | . 12 17 . 9 Robot Miss Streak 3 | . 3 2 . 2 Penetration Max . | . . . . . Secondary Targets 3 | . 1 1 . 1 Max Gunslinging Chain 1 | . 1 1 . 1 Shots Hit Robots 148 | . 36 24 . 88 Core Hits 62 | . 18 10 . 34 Critical Kills 1 | . . . . 1 Critical Parts Destroyed . | . . . . . Critical Strikes 1 | . . . . 1 Destroy 1 | . . . . 1 Melee Attacks . | . . . . . Impact . | . . . . . Slashing . | . . . . . Piercing . | . . . . . Sneak Attacks . | . . . . . Combat Hostiles . | . . . . . Follow-up Attacks . | . . . . . Damage Inflicted 2322 | . 644 290 . 1388 Guns 1561 | . 392 290 . 879 Cannons 138 | . . . . 138 Explosions 615 | . 249 . . 366 Melee . | . . . . . Ramming 8 | . 3 . . 5 Kinetic 173 | . . . . 173 Thermal 1526 | . 392 290 . 844 Explosive 615 | . 249 . . 366 Electromagnetic . | . . . . . Impact . | . . . . . Slashing . | . . . . . Piercing . | . . . . . Highest Corruption . | . . . . . Average Corruption . | . . . . . Corruption Purged . | . . . . . Corruption Blocked . | . . . . . Overload Shots . | . . . . . Overflow Damage 15 | . 15 . . . Projectiles . | . . . . . Explosions 15 | . 15 . . . Melee . | . . . . . Knockbacks . | . . . . . Impact . | . . . . . Kinetic . | . . . . . Secondary . | . . . . . Self-Inflicted Damage 143 | . 62 . . 81 Shots 4 | . 1 . . 3 Rammed . | . . . . . Targets Rammed 3 | . 1 . . 2 Kicked 3 | . 1 . . 2 Crushed . | . . . . . Highest Temperature 261 | . 162 261 . 235 Average Temperature 93 | . 69 130 . 96 Received Heat Transfer 963 | . 174 96 . 693 Effects 1 | . . 1 . . Energy Bleed 1 | . . 1 . . Siege Activations . | . . . . . Robots Corrupted . | . . . . . Combat Hostiles . | . . . . . Parts Fried . | . . . . . Impact Corruptions . | . . . . . Robots Melted . | . . . . . Combat Hostiles . | . . . . . Parts Melted 4 | . 1 1 . 2 Heat Transferred 3425 | . 900 650 . 1875 Parts Sabotaged . | . . . . . Parts Stolen . | . . . . . Parts Stripped . | . . . . . Power Chain Reactions . | . . . . . Alert | -11 -10 -9 -9 -8 ------- Run | Yrd Mat Mat Min Mat Peak Influence 347 | . 190 264 102 347 Initial 102 | . . 79 102 39 Average 128 | . 135 173 102 127 Maximum Alert Level 1 | . . 1 . 1 Low Security (%) 90 | 100 100 45 100 91 Level 1 9 | . . 54 . 8 Level 2 . | . . . . . Level 3 . | . . . . . Level 4 . | . . . . . Level 5 . | . . . . . High Security . | . . . . . Max Security . | . . . . . Squads Dispatched 5 | . 1 1 . 3 Investigation . | . . . . . Extermination . | . . . . . Reinforcement 5 | . 1 1 . 3 Assault . | . . . . . Garrison . | . . . . . Intercept . | . . . . . Searches Triggered . | . . . . . Construction Impeded 1 | . . . . 1 Haulers Reinforced . | . . . . . Active Scanning Responses . | . . . . . Cargo Convoy Interrupts . | . . . . . Stealth | -11 -10 -9 -9 -8 --------- Run | Yrd Mat Mat Min Mat Distress Signals 7 | . 2 1 . 4 Communications Jammed . | . . . . . Distress Signals . | . . . . . Times Spotted 65 | . 18 8 12 27 Peak Tracking Total 19 | . 7 8 19 6 Tactical Retreats 5 | . . . 1 4 Traps | -11 -10 -9 -9 -8 ------- Run | Yrd Mat Mat Min Mat Traps Triggered 3 | . 2 . . 1 Indirectly . | . . . . . Trap Hack Attempts . | . . . . . Triggered . | . . . . . Disarmed . | . . . . . Reprogrammed . | . . . . . Reused . | . . . . . Traps Extracted . | . . . . . Installed . | . . . . . Triggered . | . . . . . Machines | -11 -10 -9 -9 -8 ---------- Run | Yrd Mat Mat Min Mat Machines Disabled 6 | . 2 . . 4 Max in Single Turn 2 | . 2 . . 1 Machines Repaired . | . . . . . Machines Dismantled . | . . . . . Machines Sabotaged . | . . . . . Overloaded Fab Kills . | . . . . . Hacking | -11 -10 -9 -9 -8 --------- Run | Yrd Mat Mat Min Mat Machines Accessed 2 | . 2 . . . Terminals 1 | . 1 . . . Fabricators . | . . . . . Repair Stations 1 | . 1 . . . Recycling Units . | . . . . . Scanalyzers . | . . . . . Garrison Access . | . . . . . Total Hacks 4 | . 4 . . . Successful 4 | . 4 . . . Failed . | . . . . . Catastrophic . | . . . . . Database Lockouts . | . . . . . Manual . | . . . . . Terminals 2 | . 2 . . . Fabricators . | . . . . . Repair Stations 2 | . 2 . . . Recycling Units . | . . . . . Scanalyzers . | . . . . . Garrison Access . | . . . . . Terminal Hacks 2 | . 2 . . . Record 2 | . 2 . . . Fabricator Hacks . | . . . . . Repair Station Hacks 2 | . 2 . . . Scan Component 1 | . 1 . . . Repair 1 | . 1 . . . Recycling Unit Hacks . | . . . . . Scanalyzer . | . . . . . Garrison Access Hacks . | . . . . . Unauthorized Hacks . | . . . . . Terminals . | . . . . . Fabricators . | . . . . . Repair Stations . | . . . . . Recycling Units . | . . . . . Scanalyzers . | . . . . . Garrison Access . | . . . . . Data Cores Recovered . | . . . . . Used . | . . . . . Hacking Detections . | . . . . . Full Trace Events . | . . . . . Feedback Events . | . . . . . Feedback Blocked . | . . . . . Robot Schematics Acquired . | . . . . . Robots Built . | . . . . . Authchips . | . . . . . Time . | . . . . . Total Robot Build Rating . | . . . . . Part Schematics Acquired . | . . . . . Parts Built . | . . . . . Authchips . | . . . . . Time . | . . . . . Total Part Build Rating . | . . . . . Parts Repaired 1 | . 1 . . . Time 26 | . 26 . . . Parts Recycled . | . . . . . Recycled Matter . | . . . . . Retrieved Matter . | . . . . . Retrieved Components . | . . . . . Parts Scanalyzed . | . . . . . Part Schematics Acquired . | . . . . . Parts Damaged . | . . . . . Bothacking | -11 -10 -9 -9 -8 ------------ Run | Yrd Mat Mat Min Mat Used RIF Installer . | . . . . . Robots Hacked . | . . . . . Non-combat . | . . . . . Combat . | . . . . . Robot Hacks Applied . | . . . . . Relay Couplers Released . | . . . . . Fabnet Peak Effective % . | . . . . . Robots Rewired . | . . . . . Allies Hacked . | . . . . . Hacks Repelled . | . . . . . Allies | -11 -10 -9 -9 -8 -------- Run | Yrd Mat Mat Min Mat Total Allies . | . . . . . Largest Group . | . . . . . Highest-Rated Group . | . . . . . Highest-Rated Ally . | . . . . . Total Orders . | . . . . . Ally Attacks . | . . . . . Total Damage . | . . . . . Kills . | . . . . . Allies Corrupted . | . . . . . Allies Melted . | . . . . . Intel | -11 -10 -9 -9 -8 ------- Run | Yrd Mat Mat Min Mat Robot Analysis Total . | . . . . . Derelict Logs Recovered . | . . . . . Drone Launches . | . . . . . Drone Recoveries . | . . . . . Exploration | -11 -10 -9 -9 -8 ------------- Run | Yrd Mat Mat Min Mat Turns Passed 1427 | 81 593 166 31 556 Spaces Moved 857 | 54 356 101 99 247 Core 36 | 32 . . . 4 Treads 29 | . . . . 29 Legs 498 | 22 356 52 . 68 Wheels . | . . . . . Hover . | . . . . . Flight 294 | . . 49 99 146 Fastest Speed 31 | 50 120 31 31 31 Average Speed 104 | 125 120 81 31 114 Slowest Speed 220 | 200 190 220 31 210 Overloaded Moves . | . . . . . Propulsion Burnouts . | . . . . . Robots Hopped . | . . . . . Cave-ins Triggered . | . . . . . Exploration Rate (%) 26 | 4 66 14 23 27 Regions Visited 4 Branch Regions 1 Pre-discovered Areas . | . . . . . Known Exits Taken . | . . . . . Unknown Exits Taken 4 | 1 1 1 1 . Scrap Searched 1 | . . . 1 . Spaces Dug . | . . . . . Terrain Destroyed 64 | . 30 . . 34 Melee . | . . . . . Projectile 1 | . . . . 1 AOE 63 | . 30 . . 33 Terrain Rammed . | . . . . . Walls Destroyed . | . . . . . Machines Disabled . | . . . . . Actions | -11 -10 -9 -9 -8 --------- Run | Yrd Mat Mat Min Mat Total 1172 | 64 463 144 98 403 Wait 102 | . 63 2 . 37 Move 853 | 53 355 100 98 247 Hop . | . . . . . Pick Up 16 | 4 4 4 . 4 Fast Attach 20 | 4 2 2 . 12 Attach 13 | 2 1 3 . 7 Detach 1 | . . . . 1 Swap 16 | 1 7 7 . 1 Drop 12 | . 3 7 . 2 Fire 136 | . 27 19 . 90 Melee . | . . . . . Ram . | . . . . . Kick 3 | . 1 . . 2 Crush . | . . . . . Escape Stasis . | . . . . . Rewire . | . . . . . Trap . | . . . . . Miscellaneous . | . . . . . Route ------- -11/Scrapyard -10/Materials -9/Materials (discovered 2 exits: [*Min x2]) -9/Mines -8/Materials History --------- Turn | Location | Event 2 | -11/Scrapyard | Discovered new exit (range 16) 82 | -11/Scrapyard | Entered Materials 298 | -10/Materials | Repaired Ion Engine 319 | -10/Materials | Build established: Mutant 655 | -10/Materials | Discovered new exit (range 9) 675 | -10/Materials | Entered another Materials area 675 | -9/Materials | Evolved 2 slots: Propulsion x2 839 | -9/Materials | Discovered new exit (range 7) 840 | -9/Materials | Discovered new exit (range 15) 841 | -9/Materials | Entered Mines 847 | -9/Mines | Assembled infested the area 868 | -9/Mines | Discovered new exit (range 14) 872 | -9/Mines | Entered Materials 872 | -8/Materials | Evolved 2 slots: Utility x2 956 | -8/Materials | Lost 5 parts (1p3n1w) 1121 | -8/Materials | Lost 6 parts (1p2n1u2w) 1135 | -8/Materials | Core integrity fell below 50% 1322 | -8/Materials | Lost 3 parts (1u2w) 1333 | -8/Materials | Core integrity fell below 20% 1428 | -8/Materials | Destroyed by Y-45 Defender with Heavy Assault Rifle Last Messages --------------- 01341_ K-01 Serf collects debris. 01342_ U-05 Engineer lays Concrete. 01342_ Acquired Carbon-fiber Leg. 01343_ U-05 Engineer lays Concrete. 01343_ R-06 Scavenger collects Carbon-fiber Leg. 01345_ K-01 Serf collects debris. 01346_ Kicked W-25 Informer. 01346_ U-05 Engineer builds a Wall. 01348_ K-01 Serf cleans the Terminal. 01350_ U-05 Engineer builds a Wall. 01351_ Triggered Proton Bomb Trap. 01351_ A bubble of electromagnetic force engulfs the area. 01351_ Door malfunctions. 01352_ K-01 Serf collects debris. 01369_ Acquired Imp. Sensor Array. 01374_ W-25 Informer sends out distress signal. 01380_ Acquired Particle Charger. 01395_ Acquired Mni. Grenade Launcher. 01423_ Repair Station disabled. 01427_ Kicked Y-45 Defender. Map ----- +----------------------------------------------------+ | ?????????????????????????????????????????????????? | | ?????????????????????????????????????????????????? | | ?????????????????????????????????????????????????? | | ?????????????????????????????????????????????????? | | ?????????????????????????????????????????????????? | | ?????????????????????????????????????????????????? | | ?????????????????????????????????????????????????? | | ?????????????????????????????????????????????????? | | ???????????????????????????????????? ?????######## | | ???????????????????????????????????? ?????# | | ???????????????????????????????????? ?????#!! | | ???????????????????????????????????? ?????#! ! | | ???????????????????????????????????? ?????# | | ???????????????????????????????????? ?????# ! | | ???????????????????????????????????# ?????# | | ???????????????????????????????????# #????#######+ | | ???????????????????????????????????# ########### % | | ???????????????????????????????????# | | ???????????????????????????????????# | | ???????????????????????????????????# | | ???????????????????????????????????# | | ???????????????????????????????????# | | ???????????????????########?########+####/#/#### | | ???????????????????# ! #?# ? ### | | ???????????????????# #?# ! #?" | | ???????????????????# @#?# #?" | | ???????????????????#! " Y### """ """ """ !!!#?" | | ???????????????????# "R" + +! """ """ """ !!!#?# | | ???????????????????# """ ### """ """ """ !! #?# | | ???????????????????##+#####?# """ """ """ #?? | | ???????????????????? ??????# #?? | | ??????????????????? ???????########+###########?? | | ?????????????????? ???????????????? #???????????? | | ?????????????????? ??????????????????????????????? | | ?????????????????????????????????????????????????? | | ?????????????????????????????????????????????????? | | ?????????????????????????????????????????????????? | | ?????????????????????????????????????????????????? | | ?????????????????????????????????????????????????? | | ?????????????????????????????????????????????????? | | ?????????????????????????????????????????????????? | | ?????????????????????????????????????????????????? | | ?????????????????????????????????????????????????? | | ?????????????????????????????????????????????????? | | ?????????????????????????????????????????????????? | | ?????????????????????????????????????????????????? | | ?????????????????????????????????????????????????? | | ?????????????????????????????????????????????????? | | ?????????????????????????????????????????????????? | | ?????????????????????????????????????????????????? | +----------------------------------------------------+ Best States ------------- Heat Dissipation 31 Energy Generation 14 Energy Capacity 250 Matter Stores 300 Matter Capacity 300 Sight Range 16 Robot Scan Range 15 Terrain Scan Density 10 Armor Coverage 150 Utility Shielding 33 Evasion (%) 63 Targeting Accuracy 8 Recoil Reduction 1 Particle Charging 15 Item Schematics ----------------- None Robot Schematics ------------------ None Fabricated ------------ Nothing Alien Tech Used ----------------- None Achievements -------------- None Challenges ------------ None Game ------ Seed BeamAlphaMegatreads Manual? 0 Play Time 00:17:09 Cumulative 10.3 hours Start 2025.01.04 @ 18:38:30 End 2025.01.04 @ 18:56:41 Sessions 1 Manual Loads 0 Difficulty Rogue Special Mode None Game No. 27 Rogue 27 Adventurer 0 Explorer 0 Win Type - Total 0 Types 0/0/0/0/0/0/0/0/0 Lore% 3 Gallery% 20 Achievement% 16 Wizard Run 0 Options --------- Layout 0 ASCII 0 Keyboard 0 Movement Numpad Keybinds 0 Fullscreen 2 Font 18/Terminus Map View 76x50 Zoom Use 0% Tactical HUD 1 Map Filters NONE Filters NONE Steam 1 RUN: b8af1551-49e8-454d-88a1-56d74fd98d24